{"text_format":"1","workbook":"xlsx","n_sheets":2,"sheets":["ORÇ SINTÉTICO","ORÇ GERAL"],"not_rendered":{"charts":0,"images":2,"macros":1,"external_links":0,"defined_names":35,"comments":0,"pivot_tables":0},"unopened":[],"bounds":{"document_bytes":16777216,"sheet_cells":100000,"rows_first":2000,"rows_last":500,"rows_between":2000,"halvings":0,"cell_chars":16384,"cell_head_chars":4096},"cells_cut":0,"cells_raw":0,"read":"whole","date_system":"1900"}

{"sheet":"ORÇ SINTÉTICO","index":0,"n_rows":20,"n_cols":5,"rows_kept":20,"cut":false,"hidden":false,"merged":[[0,3,5,4],[3,0,3,1],[0,1,0,2],[1,1,1,2],[2,1,2,2],[4,0,4,2],[5,0,5,2],[0,0,2,0],[12,1,12,2],[18,0,18,2],[19,0,19,2],[6,0,6,4],[7,0,10,0],[7,3,10,4]]}
[null,"MINISTÉRIO DA EDUCAÇÃO"]
[null,"INSTITUTO FEDERAL DE CIÊNCIA E TECNOLOGIA DO PARANÁ"]
[null,"DIRETORIA DE INFRAESTRUTURA"]
[]
["PLANILHA DE CUSTO ESTIMADO"]
["SINTÉTICO"]
[]
["OBRA","Campus:","BARRACÃO","FEVEREIRO-2018"]
[null,"Obra:","REFORMA ELETRICA BLOCO EXISTENTE"]
[null,"Área:",3003.44]
[null,"Custo/m²: "]
[]
["ITEM","DESCRIÇÃO DOS SERVIÇOS",null,"PREÇO TOTAL         R$","PERCENTUAL        %"]
[]
[1,{"$f":"VLOOKUP(A15,'ORÇ GERAL'!A:B,2,FALSE)","v":"INSTALAÇÕES ELÉTRICAS"},null,{"$f":"VLOOKUP(B15,'ORÇ GERAL'!B:I,8,FALSE)","v":{"$error":"#VALUE!"}},{"$f":"D15/$D$19","v":{"$error":"#VALUE!"}}]
[2,{"$f":"VLOOKUP(A16,'ORÇ GERAL'!A:B,2,FALSE)","v":"SPDA"},null,{"$f":"VLOOKUP(B16,'ORÇ GERAL'!B:I,8,FALSE)","v":{"$error":"#VALUE!"}},{"$f":"D16/$D$19","v":{"$error":"#VALUE!"}}]
[3,{"$f":"VLOOKUP(A17,'ORÇ GERAL'!A:B,2,FALSE)","v":"PSCIP"},null,{"$f":"VLOOKUP(B17,'ORÇ GERAL'!B:I,8,FALSE)","v":{"$error":"#VALUE!"}},{"$f":"D17/$D$19","v":{"$error":"#VALUE!"}}]
[4,{"$f":"VLOOKUP(A18,'ORÇ GERAL'!A:B,2,FALSE)","v":"ENTRADA DE ENERGIA"},null,{"$f":"VLOOKUP(B18,'ORÇ GERAL'!B:I,8,FALSE)","v":{"$error":"#VALUE!"}},{"$f":"D18/$D$19","v":{"$error":"#VALUE!"}}]
["SUB-TOTAL ",null,null,{"$f":"SUM(D15:D18)","v":{"$error":"#VALUE!"}},{"$f":"SUM(E15:E18)","v":{"$error":"#VALUE!"}}]
["SUB-TOTAL COM BDI",null,null,{"$f":"'ORÇ GERAL'!I112","v":{"$error":"#VALUE!"}}]

{"sheet":"ORÇ GERAL","index":1,"n_rows":116,"n_cols":9,"rows_kept":116,"cut":false,"hidden":false,"merged":[[7,3,7,4],[8,3,8,4],[111,0,111,6],[0,1,0,6],[3,0,3,6],[2,1,2,6],[118,0,118,8],[9,3,9,4],[6,0,6,8],[0,7,5,8],[5,0,5,6],[4,0,4,6],[7,0,9,0],[7,5,7,6],[116,0,116,8],[117,0,117,8],[0,0,2,0],[9,5,9,6],[7,7,9,8],[110,0,110,7],[8,5,8,6],[1,1,1,6]]}
[null,"MINISTÉRIO DA EDUCAÇÃO"]
[null,"INSTITUTO FEDERAL DE CIÊNCIA E TECNOLOGIA DO PARANÁ"]
[null,"DIRETORIA DE INFRAESTRUTURA"]
[]
["PLANILHA ESTIMATIVA DE QUANTITATIVOS"]
["GERAL - ESTIMATIVA"]
[]
["OBRA","CAMPUS: BARRACÃO",null,"Área (m²)",null,3003.44,null,"FEVEREIRO-2018"]
[null,"OBRA: REFORMA ELETRICA BLOCO EXISTENTE",null,"Preço total"]
[null,null,null,"R$/m²"]
[]
["ITEM","DESCRIÇÃO DOS SERVIÇOS","APLICAÇÃO","UNID.","QUANT.","PREÇO MATERIAL Unit. R$","PREÇO MÃO-DE-OBRA       Unit. R$","PREÇO TOTAL      Unit. R$","PREÇO TOTAL         R$"]
[]
[1,"INSTALAÇÕES ELÉTRICAS",null,null,null,null,null,null,{"$f":"I15+I36","v":{"$error":"#VALUE!"}}]
["1.1","ALIMENTAÇÃO DA ENERGIA",null,null,null,null,null,null,{"$f":"SUM(I16:I35)","v":{"$error":"#VALUE!"}}]
["1.1.1","QUADRO DE DISTRIBUICAO DE ENERGIA DE EMBUTIR, EM CHAPA METALICA, PARA 32 DISJUNTORES TERMOMAGNETICOS MONOPOLARES, COM BARRAMENTO TRIFASICO E NEUTRO, FORNECIMENTO E INSTALACAO",null,"UN",16,null,null,{"$f":"IF(OR(F16<>\"\",G16<>\"\"),F16+G16,\"\")","v":""},{"$f":"IF(OR(E16<>\"\",H16<>\"\"),E16*H16,\"\")","v":{"$error":"#VALUE!"}}]
["1.1.2","COBRE ELETROLITICO EM BARRA OU CHAPA",null,"KG",32,null,null,"",{"$error":"#VALUE!"}]
["1.1.3","DISJUNTOR MONOPOLAR TIPO DIN, CORRENTE NOMINAL DE 10A - FORNECIMENTO E INSTALAÇÃO. AF_04/2016",null,"UN",42,null,null,"",{"$error":"#VALUE!"}]
["1.1.4","DISJUNTOR MONOPOLAR TIPO DIN, CORRENTE NOMINAL DE 20A - FORNECIMENTO E INSTALAÇÃO. AF_04/2016",null,"UN",49,null,null,"",{"$error":"#VALUE!"}]
["1.1.5","DISJUNTOR BIPOLAR TIPO DIN, CORRENTE NOMINAL DE 10A - FORNECIMENTO E INSTALAÇÃO. AF_04/2016",null,"UN",12,null,null,"",{"$error":"#VALUE!"}]
["1.1.6","DISJUNTOR BIPOLAR TIPO DIN, CORRENTE NOMINAL DE 32A - FORNECIMENTO E INSTALAÇÃO. AF_04/2016",null,"UN",28,null,null,"",{"$error":"#VALUE!"}]
["1.1.7","DISJUNTOR TRIPOLAR TIPO DIN, CORRENTE NOMINAL DE 32A - FORNECIMENTO E INSTALAÇÃO. AF_04/2016",null,"UN",1,null,null,"",{"$error":"#VALUE!"}]
["1.1.8","DISJUNTOR TRIPOLAR TIPO DIN, CORRENTE NOMINAL DE 50A - FORNECIMENTO E INSTALAÇÃO. AF_04/2016",null,"UN",22,null,null,{"$f":"IF(OR(F23<>\"\",G23<>\"\"),F23+G23,\"\")","v":""},{"$f":"IF(OR(E23<>\"\",H23<>\"\"),E23*H23,\"\")","v":{"$error":"#VALUE!"}}]
["1.1.9","DISJUNTOR TERMOMAGNETICO TRIPOLAR PADRAO NEMA (AMERICANO) 60 A 100A 240V, FORNECIMENTO E INSTALACAO",null,"UN",8,null,null,"",{"$error":"#VALUE!"}]
["1.1.10","DISJUNTOR TERMOMAGNETICO TRIPOLAR EM CAIXA MOLDADA 300 A 400A 600V, FORNECIMENTO E INSTALACAO",null,"UN",2,null,null,{"$f":"IF(OR(F25<>\"\",G25<>\"\"),F25+G25,\"\")","v":""},{"$f":"IF(OR(E25<>\"\",H25<>\"\"),E25*H25,\"\")","v":{"$error":"#VALUE!"}}]
["1.1.11","DUTO ESPIRAL FLEXIVEL SINGELO PEAD D=75MM(3\") REVESTIDO COM PVC COM FIO GUIA DE ACO GALVANIZADO, LANCADO DIRETO NO SOLO, INCL CONEXOES",null,"M",160,null,null,"",{"$error":"#VALUE!"}]
["1.1.12","CABO DE COBRE FLEXÍVEL ISOLADO, 70 MM², ANTI-CHAMA 450/750 V, PARA DISTRIBUIÇÃO - FORNECIMENTO E INSTALAÇÃO. AF_12/2015",null,"M",640,null,null,"",{"$error":"#VALUE!"}]
["1.1.13","TERMINAL A COMPRESSAO EM COBRE ESTANHADO PARA CABO 70 MM2, 1 FURO E 1 COMPRESSAO, PARA PARAFUSO DE FIXACAO M10",null,"UD",16,null,null,{"$f":"IF(OR(F28<>\"\",G28<>\"\"),F28+G28,\"\")","v":""},{"$f":"IF(OR(E28<>\"\",H28<>\"\"),E28*H28,\"\")","v":{"$error":"#VALUE!"}}]
["1.1.14","CAIXA DE INSPEÇÃO EM ALVENARIA DE TIJOLO MACIÇO 60X60X60CM, REVESTIDA INTERNAMENTO COM BARRA LISA (CIMENTO E AREIA, TRAÇO 1:4) E=2,0CM, COM TAMPA PRÉ-MOLDADA DE CONCRETO E FUNDO DE CONCRETO 15MPA TIPO C - ESCAVAÇÃO E CONFECÇÃO",null,"UN",3,null,null,{"$f":"IF(OR(F29<>\"\",G29<>\"\"),F29+G29,\"\")","v":""},{"$f":"IF(OR(E29<>\"\",H29<>\"\"),E29*H29,\"\")","v":{"$error":"#VALUE!"}}]
["1.1.15","CABO DE COBRE FLEXÍVEL ISOLADO, 25 MM², ANTI-CHAMA 0,6/1,0 KV, PARA DISTRIBUIÇÃO - FORNECIMENTO E INSTALAÇÃO. AF_12/2015",null,"M",500,null,null,{"$f":"IF(OR(F30<>\"\",G30<>\"\"),F30+G30,\"\")","v":""},{"$f":"IF(OR(E30<>\"\",H30<>\"\"),E30*H30,\"\")","v":{"$error":"#VALUE!"}}]
["1.1.16","CABO DE COBRE FLEXÍVEL ISOLADO, 10 MM², ANTI-CHAMA 0,6/1,0 KV, PARA DISTRIBUIÇÃO - FORNECIMENTO E INSTALAÇÃO. AF_12/2015",null,"M",1800,null,null,"",{"$error":"#VALUE!"}]
["1.1.17","CABO DE COBRE FLEXÍVEL ISOLADO, 4 MM², ANTI-CHAMA 450/750 V, PARA CIRCUITOS TERMINAIS - FORNECIMENTO E INSTALAÇÃO. AF_12/2015",null,"M",600,null,null,"",{"$error":"#VALUE!"}]
["1.1.18","DISPOSITIVO DE PROTEÇÃO CONTRA SURTOS (DPS) 1 POLO, CORRENTE NOMINAL DE DESCARGA 80KA, NÍVEL DE PROTEÇÃO DE TENSÃO ATÉ 175KV, FORNECIDO/INSTALADO",null,"UND",4,null,null,"",{"$error":"#VALUE!"}]
["1.1.19","ESCAVAÇÃO MANUAL DE VALAS. AF_03/2016",null,"M3",20,null,null,"",{"$error":"#VALUE!"}]
["1.1.20","REATERRO MANUAL APILOADO COM SOQUETE. AF_10/2017",null,"M3",20,null,null,"",{"$error":"#VALUE!"}]
["1.2","ILUMINAÇÃO E TOMADAS",null,null,null,null,null,null,{"$f":"SUM(I37:I61)","v":{"$error":"#VALUE!"}}]
["1.2.1","CONDULETE DE PVC, TIPO X, PARA ELETRODUTO DE PVC SOLDÁVEL DN 25 MM (3/4''), APARENTE - FORNECIMENTO E INSTALAÇÃO. AF_11/2016",null,"UN",844,null,null,{"$f":"IF(OR(F37<>\"\",G37<>\"\"),F37+G37,\"\")","v":""},{"$f":"IF(OR(E37<>\"\",H37<>\"\"),E37*H37,\"\")","v":{"$error":"#VALUE!"}}]
["1.2.2","LUVA PARA ELETRODUTO, PVC, ROSCÁVEL, DN 25 MM (3/4\"), PARA CIRCUITOS TERMINAIS, INSTALADA EM LAJE - FORNECIMENTO E INSTALAÇÃO. AF_12/2015",null,"UN",301,null,null,"",{"$error":"#VALUE!"}]
["1.2.3","ELETRODUTO FLEXÍVEL CORRUGADO, PVC, DN 25 MM (3/4\"), PARA CIRCUITOS TERMINAIS, INSTALADO EM PAREDE - FORNECIMENTO E INSTALAÇÃO. AF_12/2015",null,"M",1214.7,null,null,"",{"$error":"#VALUE!"}]
["1.2.4","ELETRODUTO RÍGIDO ROSCÁVEL, PVC, DN 25 MM (3/4\"), PARA CIRCUITOS TERMINAIS, INSTALADO EM PAREDE - FORNECIMENTO E INSTALAÇÃO. AF_12/2015",null,"M",2140,null,null,"",{"$error":"#VALUE!"}]
["1.2.5","CURVA 90 GRAUS PARA ELETRODUTO, PVC, ROSCÁVEL, DN 25 MM (3/4\"), PARA CIRCUITOS TERMINAIS, INSTALADA EM PAREDE - FORNECIMENTO E INSTALAÇÃO. AF_12/2015",null,"UN",180,null,null,{"$f":"IF(OR(F41<>\"\",G41<>\"\"),F41+G41,\"\")","v":""},{"$f":"IF(OR(E41<>\"\",H41<>\"\"),E41*H41,\"\")","v":{"$error":"#VALUE!"}}]
["1.2.6","INTERRUPTOR SIMPLES (1 MÓDULO), 10A/250V, INCLUINDO SUPORTE E PLACA - FORNECIMENTO E INSTALAÇÃO. AF_12/2015",null,"UN",30,null,null,"",{"$error":"#VALUE!"}]
["1.2.7","INTERRUPTOR SIMPLES (2 MÓDULOS), 10A/250V, INCLUINDO SUPORTE E PLACA - FORNECIMENTO E INSTALAÇÃO. AF_12/2015",null,"UN",20,null,null,"",{"$error":"#VALUE!"}]
["1.2.8","INTERRUPTOR SIMPLES (3 MÓDULOS), 10A/250V, INCLUINDO SUPORTE E PLACA - FORNECIMENTO E INSTALAÇÃO. AF_12/2015",null,"UN",1,null,null,"",{"$error":"#VALUE!"}]
["1.2.9","TOMADA MÉDIA DE EMBUTIR (1 MÓDULO), 2P+T 10 A, INCLUINDO SUPORTE E PLACA - FORNECIMENTO E INSTALAÇÃO. AF_12/2015",null,"UN",493,null,null,{"$f":"IF(OR(F45<>\"\",G45<>\"\"),F45+G45,\"\")","v":""},{"$f":"IF(OR(E45<>\"\",H45<>\"\"),E45*H45,\"\")","v":{"$error":"#VALUE!"}}]
["1.2.10","CABO DE COBRE FLEXÍVEL ISOLADO, 2,5 MM², ANTI-CHAMA 450/750 V, PARA CIRCUITOS TERMINAIS - FORNECIMENTO E INSTALAÇÃO. AF_12/2015",null,"M",7520,null,null,"",{"$error":"#VALUE!"}]
["1.2.11","CABO DE COBRE FLEXÍVEL ISOLADO, 4 MM², ANTI-CHAMA 450/750 V, PARA CIRCUITOS TERMINAIS - FORNECIMENTO E INSTALAÇÃO. AF_12/2015",null,"M",1250,null,null,{"$f":"IF(OR(F47<>\"\",G47<>\"\"),F47+G47,\"\")","v":""},{"$f":"IF(OR(E47<>\"\",H47<>\"\"),E47*H47,\"\")","v":{"$error":"#VALUE!"}}]
["1.2.12","LUMINÁRIA DE SOBREPOR PARA DUAS LÂMPADAS  LED DE 18W, 127V/60HZ, COM CORPO EM CHAPA DE AÇO FOSFATIZADA E PINTADA ELETROSTATICAMENTE, REFLETOR PARABÓLICO EM ALUMÍNIO ANODIZADO DE ALTA PUREZA E REFLETÂNCIA E ALETAS PLANAS EM ALUMÍNIO FRISADO, COMPLETA COM LÂMPADAS, FORNECIDO INSTALADO.","LUMINÁRIA CALHA DE SOBREPOR LED 2X18 INCLUSO LAMPADAS","UND",260,null,null,{"$f":"IF(OR(F48<>\"\",G48<>\"\"),F48+G48,\"\")","v":""},{"$f":"IF(OR(E48<>\"\",H48<>\"\"),E48*H48,\"\")","v":{"$error":"#VALUE!"}}]
["1.2.13","LUMINÁRIA TIPO PLAFON  COMPACTA DE 32W E RECEPTÁCULO E27, FORNECIDO INSTALADO",null,"UND",7,null,null,{"$f":"IF(OR(F49<>\"\",G49<>\"\"),F49+G49,\"\")","v":""},{"$f":"IF(OR(E49<>\"\",H49<>\"\"),E49*H49,\"\")","v":{"$error":"#VALUE!"}}]
["1.2.14","LAMPADA 6 W - E27",null,"UND",7,null,null,{"$f":"IF(OR(F50<>\"\",G50<>\"\"),F50+G50,\"\")","v":""},{"$f":"IF(OR(E50<>\"\",H50<>\"\"),E50*H50,\"\")","v":{"$error":"#VALUE!"}}]
["1.2.15","REFLETOR LED 50W",null,"UND",36,null,null,{"$f":"IF(OR(F51<>\"\",G51<>\"\"),F51+G51,\"\")","v":""},{"$f":"IF(OR(E51<>\"\",H51<>\"\"),E51*H51,\"\")","v":{"$error":"#VALUE!"}}]
["1.2.16","ELETROCALHA PERFURADA LEVE TIPO \"U\" S/ VIROLA EM F.G. PRÉ-ZINCADA A FOGO 100x50",null,"M",180,null,null,{"$f":"IF(OR(F52<>\"\",G52<>\"\"),F52+G52,\"\")","v":""},{"$f":"IF(OR(E52<>\"\",H52<>\"\"),E52*H52,\"\")","v":{"$error":"#VALUE!"}}]
["1.2.17","TAMPA P/ELETROCALHA PERFURADA LEVE EM F.G. PRÉ-ZINCADA A FOGO 100x50",null,"M",60,null,null,"",{"$error":"#VALUE!"}]
["1.2.18","SUPORTE PARA ELETROCALHA OMEGA",null,"UND",30,null,null,{"$f":"IF(OR(F54<>\"\",G54<>\"\"),F54+G54,\"\")","v":""},{"$f":"IF(OR(E54<>\"\",H54<>\"\"),E54*H54,\"\")","v":{"$error":"#VALUE!"}}]
["1.2.19","SUPORTE PARA ELETROCALHA TIPO C",null,"UND",120,null,null,{"$f":"IF(OR(F55<>\"\",G55<>\"\"),F55+G55,\"\")","v":""},{"$f":"IF(OR(E55<>\"\",H55<>\"\"),E55*H55,\"\")","v":{"$error":"#VALUE!"}}]
["1.2.20","TE RETO PARA ELETROCALHA 100x50x3000 MM",null,"UND",25,null,null,{"$f":"IF(OR(F56<>\"\",G56<>\"\"),F56+G56,\"\")","v":""},{"$f":"IF(OR(E56<>\"\",H56<>\"\"),E56*H56,\"\")","v":{"$error":"#VALUE!"}}]
["1.2.21","TERMINAL DE FECHAMENTO",null,"UND",12,null,null,"",{"$error":"#VALUE!"}]
["1.2.22","FLANGE PARA LIGAÇÃO DE ELETROCALHA 100X50",null,"UND",20,null,null,"",{"$error":"#VALUE!"}]
["1.2.23","JUNÇÃO TELESCOPICA",null,"UND",25,null,null,{"$f":"IF(OR(F59<>\"\",G59<>\"\"),F59+G59,\"\")","v":""},{"$f":"IF(OR(E59<>\"\",H59<>\"\"),E59*H59,\"\")","v":{"$error":"#VALUE!"}}]
["1.2.24","CURVA DE INVERSÃO 100MM ",null,"UND",4,null,null,"",{"$error":"#VALUE!"}]
["1.2.25","RELE FOTOELETRICO CORUJITA 500W",null,"UND",10,null,null,{"$f":"IF(OR(F61<>\"\",G61<>\"\"),F61+G61,\"\")","v":""},{"$f":"IF(OR(E61<>\"\",H61<>\"\"),E61*H61,\"\")","v":{"$error":"#VALUE!"}}]
[2,"SPDA",null,null,null,null,null,null,{"$f":"SUM(I63:I69)","v":{"$error":"#VALUE!"}}]
["2.1","TERMINAL AEREO EM ACO GALVANIZADO COM BASE DE FIXACAO H = 30CM",null,"UN",34,null,null,{"$f":"IF(OR(F63<>\"\",G63<>\"\"),F63+G63,\"\")","v":""},{"$f":"IF(OR(E63<>\"\",H63<>\"\"),E63*H63,\"\")","v":{"$error":"#VALUE!"}}]
["2.2","CORDOALHA DE COBRE NU 35 MM², NÃO ENTERRADA, COM ISOLADOR - FORNECIMENTO E INSTALAÇÃO. AF_12/2017",null,"M",750,null,null,{"$f":"IF(OR(F64<>\"\",G64<>\"\"),F64+G64,\"\")","v":""},{"$f":"IF(OR(E64<>\"\",H64<>\"\"),E64*H64,\"\")","v":{"$error":"#VALUE!"}}]
["2.3","CORDOALHA DE COBRE NU 50 MM², NÃO ENTERRADA, COM ISOLADOR - FORNECIMENTO E INSTALAÇÃO. AF_12/2017",null,"M",240,null,null,"",{"$error":"#VALUE!"}]
["2.4","HASTE DE ATERRAMENTO EM ACO COM 3,00 M DE COMPRIMENTO E DN = 5/8\", REVESTIDA COM BAIXA CAMADA DE COBRE, COM CONECTOR TIPO GRAMPO",null,"UND",34,null,null,{"$f":"IF(OR(F66<>\"\",G66<>\"\"),F66+G66,\"\")","v":""},{"$f":"IF(OR(E66<>\"\",H66<>\"\"),E66*H66,\"\")","v":{"$error":"#VALUE!"}}]
["2.5","CAIXA DE PASSAGEM 20X20X25 FUNDO BRITA COM TAMPA",null,"UN",16,null,null,"",{"$error":"#VALUE!"}]
["2.6","ESCAVAÇÃO MANUAL DE VALAS. AF_03/2016",null,"M3",135,null,null,"",{"$error":"#VALUE!"}]
["2.7","REATERRO MANUAL APILOADO COM SOQUETE. AF_10/2017",null,"M3",135,null,null,"",{"$error":"#VALUE!"}]
[3,"PSCIP",null,null,null,null,null,null,{"$f":"SUM(I71)","v":{"$error":"#VALUE!"}}]
["3.1.1","LUMINÁRIA DE EMERGENCIA 30 LED",null,"UND",43,null,null,"",{"$f":"H71*E71","v":{"$error":"#VALUE!"}}]
[4,"ENTRADA DE ENERGIA",null,null,null,null,null,null,{"$f":"I73+I97","v":{"$error":"#VALUE!"}}]
["4.1","CABINE DA ENTRADA DE ENERGIA",null,null,null,null,null,null,{"$f":"SUM(I74:I96)","v":{"$error":"#VALUE!"}}]
["4.1.1","POSTE DE CONCRETO DUPLO T H=11M E CARGA NOMINAL 200KG INCLUSIVE ESCAVACAO, EXCLUSIVE TRANSPORTE -INCLUSO CRUZETA, PARAFUSOS, MÃO FRANCESA, ARRUELA, PORCA, GANCHO, CINTA DE AÇO E ISOLADOR FORNECIMENTO E INSTALACAO",null,"UN",1,null,null,{"$f":"IF(OR(F74<>\"\",G74<>\"\"),F74+G74,\"\")","v":""},{"$f":"IF(OR(E74<>\"\",H74<>\"\"),E74*H74,\"\")","v":{"$error":"#VALUE!"}}]
["4.1.2","CABO DE COBRE NU 16MM2 - FORNECIMENTO E INSTALACAO",null,"M",6,null,null,"",{"$error":"#VALUE!"}]
["4.1.3","CABO DE COBRE NU 35MM2 - FORNECIMENTO E INSTALACAO",null,"M",16,null,null,"",{"$error":"#VALUE!"}]
["4.1.4","CABO DE COBRE FLEXÍVEL ISOLADO, 2,5 MM², ANTI-CHAMA 0,6/1,0 KV, PARA CIRCUITOS TERMINAIS - FORNECIMENTO E INSTALAÇÃO. AF_12/2015",null,"M",100,null,null,"",{"$error":"#VALUE!"}]
["4.1.5","CABO DE COBRE FLEXÍVEL ISOLADO, 95 MM², ANTI-CHAMA 0,6/1,0 KV, PARA DISTRIBUIÇÃO - FORNECIMENTO E INSTALAÇÃO. AF_12/2015",null,"M",245,null,null,"",{"$error":"#VALUE!"}]
["4.1.6","HASTE DE ATERRAMENTO EM ACO COM 3,00 M DE COMPRIMENTO E DN = 1/2\", REVESTIDA COM BAIXA CAMADA DE COBRE, COM CONECTOR TIPO GRAMPO",null,"UND",1,null,null,"",{"$error":"#VALUE!"}]
["4.1.7","CAIXA DE INSPEÇÃO EM ALVENARIA DE TIJOLO MACIÇO 60X60X60CM, REVESTIDA INTERNAMENTO COM BARRA LISA (CIMENTO E AREIA, TRAÇO 1:4) E=2,0CM, COM TAMPA PRÉ-MOLDADA DE CONCRETO E FUNDO DE CONCRETO 15MPA TIPO C - ESCAVAÇÃO E CONFECÇÃO",null,"UN",2,null,null,"",{"$error":"#VALUE!"}]
["4.1.8","CURVA 90 GRAUS PARA ELETRODUTO, PVC, ROSCÁVEL, DN 25 MM (3/4\"), PARA CIRCUITOS TERMINAIS, INSTALADA EM PAREDE - FORNECIMENTO E INSTALAÇÃO. AF_12/2015",null,"UN",1,null,null,"",{"$error":"#VALUE!"}]
["4.1.9","LUVA PARA ELETRODUTO, PVC, ROSCÁVEL, DN 25 MM (3/4\"), PARA CIRCUITOS TERMINAIS, INSTALADA EM PAREDE - FORNECIMENTO E INSTALAÇÃO. AF_12/2015",null,"UN",2,null,null,"",{"$error":"#VALUE!"}]
["4.1.10","CURVA 90 GRAUS PARA ELETRODUTO, PVC, ROSCÁVEL, DN 85 MM (3\") - FORNECIMENTO E INSTALAÇÃO. AF_12/2015",null,"UN",6,null,null,"",{"$error":"#VALUE!"}]
["4.1.11","LUVA PARA ELETRODUTO, PVC, ROSCÁVEL, DN 85 MM (3\") - FORNECIMENTO E INSTALAÇÃO. AF_12/2015",null,"UN",12,null,null,"",{"$error":"#VALUE!"}]
["4.1.12","ELETRODUTO RÍGIDO ROSCÁVEL, PVC, DN 75 MM (2 1/2\") - FORNECIMENTO E INSTALAÇÃO. AF_12/2015",null,"M",1,null,null,"",{"$error":"#VALUE!"}]
["4.1.13","TRANSFORMADOR DISTRIBUICAO  300KVA TRIFASICO 60HZ CLASSE 15KV IMERSO EM ÓLEO MINERAL - INCLUSO SUPORTE E GUINDASTE - FORNECIMENTO E INSTALACAO",null,"UN",1,null,null,"",{"$error":"#VALUE!"}]
["4.1.14","PARA-RAIO DE  DISTRIBUIÇÃO EM MATERIAL POLIMERICO TENSÃO NOMINAL 15KV, CORRENTE NOMINAL DE DESCARGA 10 KA - FORNECIMENTO E INSTALAÇÃO",null,"UN",1,null,null,"",{"$error":"#VALUE!"}]
["4.1.15","ISOLADOR DE ANCORAGEM POLIMERICO 15 KV. FORNECIMENTO E INSTALACAO.",null,"UN",3,null,null,"",{"$error":"#VALUE!"}]
["4.1.16","ELETRODUTO RÍGIDO ROSCÁVEL, PVC, DN 25 MM (3/4\"), PARA CIRCUITOS TERMINAIS, INSTALADO EM PAREDE - INCLUSO BUCHA E ARRUELA FORNECIMENTO E INSTALAÇÃO. AF_12/2015",null,"M",12,null,null,"",{"$error":"#VALUE!"}]
["4.1.17","ELETRODUTO RÍGIDO ROSCÁVEL, PVC, DN 85 MM (3\") -INCLUSO BUCHA E ARRUELA FORNECIMENTO E INSTALAÇÃO. AF_12/2015",null,"M",112,null,null,"",{"$error":"#VALUE!"}]
["4.1.18","TAMPA DE FERRO FUNDIDO80X80 PADRÃO COPEL COM SUB TAMPA - FORNECIMENTO E INSTALAÇÃO",null,"UN",2,null,null,"",{"$error":"#VALUE!"}]
["4.1.19","DISJUNTOR TERMOMAGNETICO TRIPOLAR EM CAIXA MOLDADA 800 A/ 600 V, FORNECIMENTO E INSTALACAO",null,"UN",1,null,null,"",{"$error":"#VALUE!"}]
["4.1.20","QUADRO DE DISTRIBUIÇÃO EM CHAPA DE AÇO GALVANIZADO 16 MSG, COM PINTURA ELETROSTÁTICA NA COR CINZA MUNSELL, DIM. 1,2m(A) x 1,0m(L) x 0,4m(P) COM BARRAMENTO TRIFÁSICO PARA CORRENTE DE 600A, COM ESPAÇO PARA 5 DISJUNTORES TRIFÁSICOS DE 150A, 5 DISJUNTORES BIFÁSICOS DE 10 A E  6 DISJUNTORES UNIPOLARES DE 10 A, BARRAMENTO DE TERRA E NEUTRO, COM TAMPA E SOBRETAMPA (QDG)",null,"UN",1,null,null,"",{"$error":"#VALUE!"}]
["4.1.21","PLACA/PISO DE CONCRETO POROSO/ PAVIMENTO PERMEAVEL/BLOCO DRENANTE DE CONCRETO, 40 CM X 40 CM, E = 6 CM, COR NATURAL",null,"M2",7.6800000000000015,null,null,"",{"$error":"#VALUE!"}]
["4.1.22","ESCAVAÇÃO MANUAL DE VALAS. AF_03/2016",null,"M3",25,null,null,"",{"$error":"#VALUE!"}]
["4.1.23","REATERRO MANUAL APILOADO COM SOQUETE. AF_10/2017",null,"M3",25,null,null,"",{"$error":"#VALUE!"}]
["4.2","INFRAESRUTURA ENTRADA DE ENERGIA",null,null,null,null,null,null,{"$f":"SUM(I98:I110)","v":{"$error":"#VALUE!"}}]
["4.2.1","ARMAÇÃO DE PILAR OU VIGA DE UMA ESTRUTURA CONVENCIONAL DE CONCRETO ARMADO EM UMA EDIFICAÇÃO TÉRREA OU SOBRADO UTILIZANDO AÇO CA-50 DE 10,0 MM - MONTAGEM. AF_12/2015",null,"KG",24.76,null,null,{"$f":"IF(OR(F98<>\"\",G98<>\"\"),F98+G98,\"\")","v":""},{"$f":"IF(OR(E98<>\"\",H98<>\"\"),E98*H98,\"\")","v":{"$error":"#VALUE!"}}]
["4.2.2","ARMAÇÃO DE PILAR OU VIGA DE UMA ESTRUTURA CONVENCIONAL DE CONCRETO ARMADO EM UMA EDIFICAÇÃO TÉRREA OU SOBRADO UTILIZANDO AÇO CA-60 DE 5,0 MM - MONTAGEM. AF_12/2015",null,"KG",21.9,null,null,{"$f":"IF(OR(F99<>\"\",G99<>\"\"),F99+G99,\"\")","v":""},{"$f":"IF(OR(E99<>\"\",H99<>\"\"),E99*H99,\"\")","v":{"$error":"#VALUE!"}}]
["4.2.3","FABRICAÇÃO DE FÔRMA PARA PILARES E ESTRUTURAS SIMILARES, EM MADEIRA SERRADA, E=25 MM. AF_12/2015",null,"M2",22.1,null,null,"",{"$error":"#VALUE!"}]
["4.2.4","CONCRETO FCK = 20MPA, TRAÇO 1:2,7:3 (CIMENTO/ AREIA MÉDIA/ BRITA 1)  - PREPARO MECÂNICO COM BETONEIRA 400 L. AF_07/2016",null,"M3",1.1000000000000001,null,null,"",{"$error":"#VALUE!"}]
["4.2.5","LAJE PRE-MOLDADA P/FORRO, SOBRECARGA 100KG/M2, VAOS ATE 3,50M/E=8CM, C/LAJOTAS E CAP.C/CONC FCK=20MPA, 3CM, INTER-EIXO 38CM, C/ESCORAMENTO (REAPR.3X) E FERRAGEM NEGATIVA",null,"M2",14.06,null,null,{"$f":"IF(OR(F102<>\"\",G102<>\"\"),F102+G102,\"\")","v":""},{"$f":"IF(OR(E102<>\"\",H102<>\"\"),E102*H102,\"\")","v":{"$error":"#VALUE!"}}]
["4.2.6","ALVENARIA DE VEDAÇÃO DE BLOCOS CERÂMICOS FURADOS NA HORIZONTAL DE 14X9X19CM (ESPESSURA 14CM, BLOCO DEITADO) DE PAREDES COM ÁREA LÍQUIDA MAIOR OU IGUAL A 6M² COM VÃOS E ARGAMASSA DE ASSENTAMENTO COM PREPARO EM BETONEIRA. AF_06/2014",null,"M2",12.45,null,null,"",{"$error":"#VALUE!"}]
["4.2.7","CHAPISCO APLICADO EM ALVENARIAS E ESTRUTURAS DE CONCRETO INTERNAS, COM COLHER DE PEDREIRO.  ARGAMASSA TRAÇO 1:3 COM PREPARO MANUAL. AF_06/2014",null,"M2",21.58,null,null,"",{"$error":"#VALUE!"}]
["4.2.8","EMBOÇO OU MASSA ÚNICA EM ARGAMASSA TRAÇO 1:2:8, PREPARO MANUAL, APLICADA MANUALMENTE EM PANOS CEGOS DE FACHADA (SEM PRESENÇA DE VÃOS), ESPESSURA DE 25 MM. AF_06/2014",null,"M2",21.58,null,null,"",{"$error":"#VALUE!"}]
["4.2.9","APLICAÇÃO MANUAL DE FUNDO SELADOR ACRÍLICO EM PANOS CEGOS DE FACHADA (SEM PRESENÇA DE VÃOS) DE EDIFÍCIOS DE MÚLTIPLOS PAVIMENTOS. AF_06/2014",null,"M2",21.58,null,null,{"$f":"IF(OR(F106<>\"\",G106<>\"\"),F106+G106,\"\")","v":""},{"$f":"IF(OR(E106<>\"\",H106<>\"\"),E106*H106,\"\")","v":{"$error":"#VALUE!"}}]
["4.2.10","APLICAÇÃO MANUAL DE TINTA LÁTEX ACRÍLICA EM PAREDE EXTERNAS DE CASAS, DUAS DEMÃOS. AF_11/2016",null,"M2",21.58,null,null,"",{"$error":"#VALUE!"}]
["4.2.11","PISO CIMENTADO TRACO 1:3 (CIMENTO E AREIA) ACABAMENTO LISO ESPESSURA 3,5CM, PREPARO MANUAL DA ARGAMASSA",null,"M2",7.53,null,null,"",{"$error":"#VALUE!"}]
["4.2.12","ARMACAO EM TELA DE ACO SOLDADA NERVURADA Q-92, ACO CA-60, 4,2MM, MALHA 15X15CM",null,"M2",7.53,null,null,"",{"$error":"#VALUE!"}]
["4.2.13","IMPERMEABILIZACAO DE CALHAS/LAJES DESCOBERTAS, COM EMULSAO ASFALTICA COM ELASTOMEROS, 3 DEMAOS",null,"M2",14.06,null,null,"",{"$error":"#VALUE!"}]
[null,null,null,null,null,null,null,null,{"$f":"I14+I62+I70+I72","v":{"$error":"#VALUE!"}}]
["PREÇO TOTAL GLOBAL COM BDI",null,null,null,null,null,null,null,{"$f":"I111*(1+H112)","v":{"$error":"#VALUE!"}}]
[]
[]
[]
[null,null,"__________________________________________________________________"]